[Event "Titled Tuesday Blitz January 10 Late 2023"]
[White "Sarana, Alexey"]
[Black "Mladek, Richard"]
[WhiteFideId "24133795"]
[BlackFideId "386588"]
[WhiteElo "2685"]
[BlackElo "2436"]
[Result "1-0"]
[Round "04"]
[TimeControl "180+2"]
[Date "2023.01.10"]
[WhiteClock "0:01:18"]
[BlackClock "0:00:09"]

1. e4 {[%clk 0:00:00]}  e5 {[%clk 0:00:00]} 2. Nf3 {[%clk 0:03:00]}  Nc6 {[%clk 0:03:00]} 3. Bb5 {[%clk 0:03:01]}  a6 {[%clk 0:03:00]} 4. Ba4 {[%clk 0:03:00]}  Nf6 {[%clk 0:03:00]} 5. O-O {[%clk 0:03:00]}  Nxe4 {[%clk 0:03:01]} 6. d4 {[%clk 0:03:01]}  b5 {[%clk 0:02:58]} 7. Bb3 {[%clk 0:03:00]}  d5 {[%clk 0:02:58]} 8. dxe5 {[%clk 0:03:00]}  Be6 {[%clk 0:02:59]} 9. c3 {[%clk 0:03:00]}  Be7 {[%clk 0:02:59]} 10. Nd4 {[%clk 0:02:59]}  Qd7 {[%clk 0:03:00]} 11. f4 {[%clk 0:02:51]}  Nxd4 {[%clk 0:02:31]} 12. cxd4 {[%clk 0:02:45]}  c5 {[%clk 0:02:27]} 13. Be3 {[%clk 0:02:43]}  c4 {[%clk 0:02:22]} 14. Bc2 {[%clk 0:02:42]}  f5 {[%clk 0:02:10]} 15. exf6 {[%clk 0:02:43]}  Nxf6 {[%clk 0:02:11]} 16. f5 {[%clk 0:02:41]}  Bf7 {[%clk 0:02:11]} 17. Nd2 {[%clk 0:02:39]}  Bd6 {[%clk 0:02:11]} 18. Nf3 {[%clk 0:02:38]}  Qc7 {[%clk 0:02:05]} 19. Ne5 {[%clk 0:02:34]}  Bxe5 {[%clk 0:02:02]} 20. dxe5 {[%clk 0:02:31]}  Qxe5 {[%clk 0:01:55]} 21. Bd4 {[%clk 0:02:31]}  Qd6 {[%clk 0:01:56]} 22. Re1+ {[%clk 0:02:30]}  Kd7 {[%clk 0:01:50]} 23. Qd2 {[%clk 0:02:28]}  Rhe8 {[%clk 0:01:50]} 24. Qg5 {[%clk 0:02:23]}  Rxe1+ {[%clk 0:01:49]} 25. Rxe1 {[%clk 0:02:20]}  Re8 {[%clk 0:01:42]} 26. Rf1 {[%clk 0:02:21]}  Qf8 {[%clk 0:01:42]} 27. h3 {[%clk 0:02:12]}  h6 {[%clk 0:01:22]} 28. Qg3 {[%clk 0:02:07]}  Ne4 {[%clk 0:01:20]} 29. Qxg7 {[%clk 0:02:06]}  Qxg7 {[%clk 0:01:15]} 30. Bxg7 {[%clk 0:02:02]}  Ng3 {[%clk 0:01:08]} 31. Rf3 {[%clk 0:02:03]}  Ne2+ {[%clk 0:01:03]} 32. Kf2 {[%clk 0:01:58]}  d4 {[%clk 0:00:36]} 33. Bxh6 {[%clk 0:01:55]}  Bd5 {[%clk 0:00:37]} 34. Ra3 {[%clk 0:01:29]}  b4 {[%clk 0:00:37]} 35. Rxa6 {[%clk 0:01:29]}  Bc6 {[%clk 0:00:36]} 36. Rxc6 {[%clk 0:01:22]}  Kxc6 {[%clk 0:00:27]} 37. Ba4+ {[%clk 0:01:21]}  Kc7 {[%clk 0:00:20]} 38. Bxe8 {[%clk 0:01:20]}  c3 {[%clk 0:00:10]} 39. bxc3 {[%clk 0:01:21]}  Nxc3 {[%clk 0:00:09]} 40. Bf7 {[%clk 0:01:18]} 1-0


[Site "https://www.chess.com"]

[Event "Titled Tuesday Blitz January 10 Late 2023"]
[White "Keymer, Vincent"]
[Black "Hamitevici, Vladimir"]
[WhiteFideId "12940690"]
[BlackFideId "13902393"]
[WhiteElo "2700"]
[BlackElo "2496"]
[Result "1-0"]
[Round "04"]
[TimeControl "180+2"]
[Date "2023.01.10"]
[WhiteClock "0:00:06"]
[BlackClock "0:00:03"]

1. a3 {[%clk 0:00:00]}  g6 {[%clk 0:00:00]} 2. Nf3 {[%clk 0:03:00]}  Bg7 {[%clk 0:02:58]} 3. d4 {[%clk 0:03:00]}  d5 {[%clk 0:02:58]} 4. c4 {[%clk 0:03:01]}  c6 {[%clk 0:02:55]} 5. cxd5 {[%clk 0:03:00]}  cxd5 {[%clk 0:02:48]} 6. Nc3 {[%clk 0:02:59]}  Nc6 {[%clk 0:02:49]} 7. Bf4 {[%clk 0:02:59]}  Nf6 {[%clk 0:02:49]} 8. e3 {[%clk 0:02:58]}  O-O {[%clk 0:02:44]} 9. h3 {[%clk 0:02:55]}  Bf5 {[%clk 0:02:43]} 10. Be2 {[%clk 0:02:54]}  Rc8 {[%clk 0:02:41]} 11. O-O {[%clk 0:02:55]}  Ne4 {[%clk 0:02:40]} 12. Rc1 {[%clk 0:02:55]}  Na5 {[%clk 0:02:35]} 13. Nxe4 {[%clk 0:02:54]}  Bxe4 {[%clk 0:02:27]} 14. Nd2 {[%clk 0:02:43]}  Bf5 {[%clk 0:02:16]} 15. Qa4 {[%clk 0:02:43]}  Nc6 {[%clk 0:02:16]} 16. Nb3 {[%clk 0:02:33]}  Qb6 {[%clk 0:01:41]} 17. Qb5 {[%clk 0:02:18]}  e5 {[%clk 0:01:38]} 18. dxe5 {[%clk 0:02:12]}  Qxb5 {[%clk 0:01:34]} 19. Bxb5 {[%clk 0:02:05]}  Nxe5 {[%clk 0:01:17]} 20. Nd4 {[%clk 0:02:04]}  Bd3 {[%clk 0:01:18]} 21. Rxc8 {[%clk 0:01:45]}  Rxc8 {[%clk 0:01:16]} 22. Rd1 {[%clk 0:01:25]}  Bxb5 {[%clk 0:01:17]} 23. Nxb5 {[%clk 0:01:25]}  a6 {[%clk 0:01:09]} 24. Nd6 {[%clk 0:01:26]}  Rc2 {[%clk 0:00:58]} 25. Rxd5 {[%clk 0:01:26]}  Nc6 {[%clk 0:00:49]} 26. Nxb7 {[%clk 0:01:24]}  Bxb2 {[%clk 0:00:39]} 27. a4 {[%clk 0:01:10]}  Rc1+ {[%clk 0:00:39]} 28. Kh2 {[%clk 0:01:10]}  Rc4 {[%clk 0:00:34]} 29. Rc5 {[%clk 0:01:10]}  Rxc5 {[%clk 0:00:35]} 30. Nxc5 {[%clk 0:01:06]}  a5 {[%clk 0:00:29]} 31. Bd6 {[%clk 0:01:06]}  f5 {[%clk 0:00:29]} 32. Kg3 {[%clk 0:00:57]}  Kf7 {[%clk 0:00:29]} 33. Kf3 {[%clk 0:00:54]}  Ba3 {[%clk 0:00:29]} 34. Ke2 {[%clk 0:00:54]}  Bxc5 {[%clk 0:00:28]} 35. Bxc5 {[%clk 0:00:47]}  Ke6 {[%clk 0:00:17]} 36. Kd3 {[%clk 0:00:47]}  Kd5 {[%clk 0:00:18]} 37. Bb6 {[%clk 0:00:41]}  Ne5+ {[%clk 0:00:18]} 38. Kc3 {[%clk 0:00:41]}  Nc4 {[%clk 0:00:17]} 39. Bd8 {[%clk 0:00:40]}  Kc5 {[%clk 0:00:13]} 40. Be7+ {[%clk 0:00:39]}  Kd5 {[%clk 0:00:14]} 41. Bf6 {[%clk 0:00:22]}  Nb6 {[%clk 0:00:14]} 42. Kb3 {[%clk 0:00:22]}  h5 {[%clk 0:00:09]} 43. f3 {[%clk 0:00:22]}  Nd7 {[%clk 0:00:09]} 44. Bd4 {[%clk 0:00:20]}  f4 {[%clk 0:00:05]} 45. Kc3 {[%clk 0:00:16]}  fxe3 {[%clk 0:00:06]} 46. Bxe3 {[%clk 0:00:14]}  Ne5 {[%clk 0:00:06]} 47. Bb6 {[%clk 0:00:15]}  Nc4 {[%clk 0:00:03]} 48. Bd8 {[%clk 0:00:15]}  Kc5 {[%clk 0:00:03]} 49. g4 {[%clk 0:00:16]}  Kd5 {[%clk 0:00:03]} 50. gxh5 {[%clk 0:00:15]}  gxh5 {[%clk 0:00:04]} 51. f4 {[%clk 0:00:13]}  Kc5 {[%clk 0:00:05]} 52. f5 {[%clk 0:00:14]}  Kd5 {[%clk 0:00:05]} 53. f6 {[%clk 0:00:14]}  Nd6 {[%clk 0:00:05]} 54. Bxa5 {[%clk 0:00:15]}  Ne4+ {[%clk 0:00:05]} 55. Kd3 {[%clk 0:00:12]}  Nxf6 {[%clk 0:00:05]} 56. Bd8 {[%clk 0:00:13]}  Nd7 {[%clk 0:00:06]} 57. Ke3 {[%clk 0:00:12]}  Ne5 {[%clk 0:00:05]} 58. a5 {[%clk 0:00:12]}  h4 {[%clk 0:00:03]} 59. Kf4 {[%clk 0:00:09]}  Nc4 {[%clk 0:00:01]} 60. Kg4 {[%clk 0:00:08]}  Ne3+ {[%clk 0:00:01]} 61. Kxh4 {[%clk 0:00:07]}  Kc6 {[%clk 0:00:02]} 62. Kg5 {[%clk 0:00:07]}  Ng2 {[%clk 0:00:02]} 63. Bb6 {[%clk 0:00:07]}  Kb5 {[%clk 0:00:02]} 64. Kg4 {[%clk 0:00:06]}  Ka6 {[%clk 0:00:03]} 65. Kg3 {[%clk 0:00:06]}  Ne1 {[%clk 0:00:02]} 66. h4 {[%clk 0:00:06]}  Nd3 {[%clk 0:00:02]} 67. h5 {[%clk 0:00:06]}  Ne5 {[%clk 0:00:03]} 68. Kf4 {[%clk 0:00:06]}  Nf7 {[%clk 0:00:04]} 69. Kf5 {[%clk 0:00:07]}  Nd6+ {[%clk 0:00:04]} 70. Kg6 {[%clk 0:00:07]}  Nc4 {[%clk 0:00:05]} 71. Bd4 {[%clk 0:00:07]}  Ne5+ {[%clk 0:00:03]} 72. Bxe5 {[%clk 0:00:06]} 1-0


[Site "https://www.chess.com"]

[Event "Titled Tuesday Blitz January 10 Late 2023"]
[White "Mosadeghpour, Masoud"]
[Black "Paszewski, Mateusz"]
[WhiteFideId "12519278"]
[BlackFideId "1141058"]
[WhiteElo "2472"]
[BlackElo "2279"]
[Result "1-0"]
[Round "04"]
[TimeControl "180+2"]
[Date "2023.01.10"]
[WhiteClock "0:01:53"]
[BlackClock "0:00:04"]

1. e4 {[%clk 0:00:00]}  c5 {[%clk 0:00:00]} 2. d4 {[%clk 0:03:00]}  cxd4 {[%clk 0:02:59]} 3. c3 {[%clk 0:03:00]}  Nf6 {[%clk 0:02:59]} 4. e5 {[%clk 0:03:01]}  Nd5 {[%clk 0:02:59]} 5. Nf3 {[%clk 0:03:01]}  Nc6 {[%clk 0:03:00]} 6. Bc4 {[%clk 0:03:02]}  Nb6 {[%clk 0:03:00]} 7. Bb3 {[%clk 0:03:03]}  d5 {[%clk 0:03:01]} 8. exd6 {[%clk 0:03:03]}  Qxd6 {[%clk 0:03:01]} 9. O-O {[%clk 0:03:04]}  Be6 {[%clk 0:02:58]} 10. Na3 {[%clk 0:03:04]}  dxc3 {[%clk 0:02:57]} 11. Qe2 {[%clk 0:03:04]}  Bxb3 {[%clk 0:02:57]} 12. axb3 {[%clk 0:03:03]}  e6 {[%clk 0:02:56]} 13. Nb5 {[%clk 0:03:03]}  Qb8 {[%clk 0:02:46]} 14. g3 {[%clk 0:03:03]}  Nd5 {[%clk 0:02:46]} 15. bxc3 {[%clk 0:02:59]}  Be7 {[%clk 0:01:30]} 16. c4 {[%clk 0:02:52]}  Nf6 {[%clk 0:00:37]} 17. Bf4 {[%clk 0:02:52]}  Qc8 {[%clk 0:00:35]} 18. Nc7+ {[%clk 0:02:53]}  Kf8 {[%clk 0:00:36]} 19. Nxa8 {[%clk 0:02:52]}  Qxa8 {[%clk 0:00:36]} 20. Ne5 {[%clk 0:02:52]}  h5 {[%clk 0:00:37]} 21. Nxc6 {[%clk 0:02:53]}  bxc6 {[%clk 0:00:36]} 22. Qf3 {[%clk 0:02:52]}  h4 {[%clk 0:00:37]} 23. Ra6 {[%clk 0:02:51]}  hxg3 {[%clk 0:00:28]} 24. hxg3 {[%clk 0:02:51]}  Qb7 {[%clk 0:00:27]} 25. Qxc6 {[%clk 0:02:50]}  Qxb3 {[%clk 0:00:27]} 26. Rxa7 {[%clk 0:02:46]}  g5 {[%clk 0:00:24]} 27. Bxg5 {[%clk 0:02:44]}  Qd3 {[%clk 0:00:18]} 28. Rxe7 {[%clk 0:02:35]}  Qh7 {[%clk 0:00:14]} 29. Rd1 {[%clk 0:02:29]}  Qh2+ {[%clk 0:00:02]} 30. Kf1 {[%clk 0:01:53]}  Qh1+ {[%clk 0:00:02]} 31. Qxh1 {[%clk 0:01:53]}  Rxh1+ {[%clk 0:00:03]} 32. Ke2 {[%clk 0:01:53]}  Rxd1 {[%clk 0:00:04]} 33. Bxf6 {[%clk 0:01:53]} 1-0


[Site "https://www.chess.com"]

[Event "Titled Tuesday Blitz January 10 Late 2023"]
[White "Jones, Gawain C B"]
[Black "Ju, Wenjun"]
[WhiteFideId "409561"]
[BlackFideId "8603006"]
[WhiteElo "2618"]
[BlackElo "2550"]
[Result "1-0"]
[Round "04"]
[TimeControl "180+2"]
[Date "2023.01.10"]
[WhiteClock "0:00:02"]
[BlackClock "0:00:03"]

1. c4 {[%clk 0:00:00]}  Nf6 {[%clk 0:00:00]} 2. Nc3 {[%clk 0:03:00]}  e5 {[%clk 0:02:58]} 3. g3 {[%clk 0:02:59]}  Nc6 {[%clk 0:02:58]} 4. Bg2 {[%clk 0:02:59]}  g6 {[%clk 0:02:54]} 5. e4 {[%clk 0:02:59]}  Bg7 {[%clk 0:02:52]} 6. Nge2 {[%clk 0:02:56]}  O-O {[%clk 0:02:51]} 7. O-O {[%clk 0:02:56]}  d6 {[%clk 0:02:51]} 8. d3 {[%clk 0:02:56]}  a5 {[%clk 0:02:51]} 9. Bg5 {[%clk 0:02:56]}  h6 {[%clk 0:02:50]} 10. Bxf6 {[%clk 0:02:50]}  Bxf6 {[%clk 0:02:50]} 11. Nd5 {[%clk 0:02:50]}  Bg7 {[%clk 0:02:51]} 12. Rb1 {[%clk 0:02:49]}  Be6 {[%clk 0:02:50]} 13. a3 {[%clk 0:02:47]}  Nd4 {[%clk 0:02:49]} 14. Nxd4 {[%clk 0:02:42]}  exd4 {[%clk 0:02:46]} 15. Nf4 {[%clk 0:02:37]}  Bd7 {[%clk 0:02:47]} 16. b4 {[%clk 0:02:36]}  axb4 {[%clk 0:02:38]} 17. axb4 {[%clk 0:02:36]}  c6 {[%clk 0:02:32]} 18. b5 {[%clk 0:02:37]}  Qa5 {[%clk 0:02:32]} 19. bxc6 {[%clk 0:02:29]}  bxc6 {[%clk 0:02:23]} 20. Rb7 {[%clk 0:02:27]}  Ra7 {[%clk 0:02:22]} 21. Qb3 {[%clk 0:02:26]}  Rfa8 {[%clk 0:02:15]} 22. h4 {[%clk 0:02:18]}  Be5 {[%clk 0:02:12]} 23. Bh3 {[%clk 0:02:10]}  Be8 {[%clk 0:01:35]} 24. Rxa7 {[%clk 0:01:42]}  Qxa7 {[%clk 0:01:33]} 25. Ne2 {[%clk 0:01:32]}  Qa2 {[%clk 0:01:30]} 26. Qb7 {[%clk 0:01:20]}  Ra7 {[%clk 0:01:27]} 27. Qb6 {[%clk 0:01:16]}  Ra6 {[%clk 0:01:17]} 28. Qb7 {[%clk 0:01:01]}  Ra7 {[%clk 0:01:16]} 29. Qc8 {[%clk 0:01:00]}  Ra8 {[%clk 0:01:15]} 30. Qg4 {[%clk 0:00:51]}  h5 {[%clk 0:01:14]} 31. Qf3 {[%clk 0:00:50]}  Qd2 {[%clk 0:01:10]} 32. Nf4 {[%clk 0:00:50]}  Ra3 {[%clk 0:01:05]} 33. Rd1 {[%clk 0:00:39]}  Qc2 {[%clk 0:00:49]} 34. Qe2 {[%clk 0:00:38]}  Qxe2 {[%clk 0:00:49]} 35. Nxe2 {[%clk 0:00:34]}  c5 {[%clk 0:00:46]} 36. f4 {[%clk 0:00:34]}  Bf6 {[%clk 0:00:47]} 37. Kf2 {[%clk 0:00:30]}  Ba4 {[%clk 0:00:47]} 38. Rd2 {[%clk 0:00:28]}  Bd8 {[%clk 0:00:44]} 39. Nc1 {[%clk 0:00:28]}  Ba5 {[%clk 0:00:44]} 40. Ra2 {[%clk 0:00:25]}  Bb4 {[%clk 0:00:40]} 41. Bf1 {[%clk 0:00:24]}  Rxa2+ {[%clk 0:00:30]} 42. Nxa2 {[%clk 0:00:16]}  Bd2 {[%clk 0:00:19]} 43. Ke2 {[%clk 0:00:16]}  Be3 {[%clk 0:00:20]} 44. Bh3 {[%clk 0:00:14]}  Kf8 {[%clk 0:00:15]} 45. Nc3 {[%clk 0:00:07]}  dxc3 {[%clk 0:00:13]} 46. Kxe3 {[%clk 0:00:02]}  Ke7 {[%clk 0:00:11]} 47. e5 {[%clk 0:00:03]}  dxe5 {[%clk 0:00:11]} 48. fxe5 {[%clk 0:00:03]}  f6 {[%clk 0:00:07]} 49. exf6+ {[%clk 0:00:04]}  Kxf6 {[%clk 0:00:05]} 50. Bc8 {[%clk 0:00:04]}  Ke5 {[%clk 0:00:06]} 51. Ba6 {[%clk 0:00:03]}  Bd7 {[%clk 0:00:06]} 52. Bb7 {[%clk 0:00:03]}  Bf5 {[%clk 0:00:03]} 53. Bd5 {[%clk 0:00:03]}  Bg4 {[%clk 0:00:03]} 54. Be4 {[%clk 0:00:02]}  Bf5 {[%clk 0:00:02]} 55. Bf3 {[%clk 0:00:02]}  Kd6 {[%clk 0:00:02]} 56. Bd1 {[%clk 0:00:02]}  Kc7 {[%clk 0:00:02]} 57. Bc2 {[%clk 0:00:02]}  Kb6 {[%clk 0:00:02]} 58. Ke2 {[%clk 0:00:02]}  Ka5 {[%clk 0:00:02]} 59. Kd1 {[%clk 0:00:01]}  Kb4 {[%clk 0:00:02]} 60. Kc1 {[%clk 0:00:02]}  Bg4 {[%clk 0:00:02]} 61. Kb1 {[%clk 0:00:02]}  Bf5 {[%clk 0:00:02]} 62. Kc1 {[%clk 0:00:02]}  Ka3 {[%clk 0:00:03]} 63. d4 {[%clk 0:00:02]} 1-0


[Site "https://www.chess.com"]

[Event "Titled Tuesday Blitz January 10 Late 2023"]
[White "Melkumyan, Hrant"]
[Black "Sargsyan, Anna M."]
[WhiteFideId "13302485"]
[BlackFideId "13308130"]
[WhiteElo "2645"]
[BlackElo "2375"]
[Result "1-0"]
[Round "04"]
[TimeControl "180+2"]
[Date "2023.01.10"]
[WhiteClock "0:00:18"]
[BlackClock "0:00:03"]

1. d4 {[%clk 0:00:00]}  d5 {[%clk 0:00:00]} 2. c4 {[%clk 0:03:00]}  c6 {[%clk 0:02:54]} 3. Nc3 {[%clk 0:03:00]}  Nf6 {[%clk 0:02:54]} 4. e3 {[%clk 0:02:55]}  e6 {[%clk 0:02:55]} 5. Nf3 {[%clk 0:02:55]}  Nbd7 {[%clk 0:02:48]} 6. Qc2 {[%clk 0:02:54]}  Bd6 {[%clk 0:02:48]} 7. Bd3 {[%clk 0:02:54]}  dxc4 {[%clk 0:02:47]} 8. Bxc4 {[%clk 0:02:53]}  b5 {[%clk 0:02:38]} 9. Bd3 {[%clk 0:02:54]}  Bb7 {[%clk 0:02:39]} 10. e4 {[%clk 0:02:50]}  e5 {[%clk 0:02:39]} 11. dxe5 {[%clk 0:02:45]}  Nxe5 {[%clk 0:02:36]} 12. Nxe5 {[%clk 0:02:41]}  Bxe5 {[%clk 0:02:36]} 13. Be3 {[%clk 0:02:41]}  Qe7 {[%clk 0:02:37]} 14. h3 {[%clk 0:02:42]}  a6 {[%clk 0:02:26]} 15. f4 {[%clk 0:02:37]}  Bxc3+ {[%clk 0:02:22]} 16. bxc3 {[%clk 0:02:30]}  c5 {[%clk 0:02:06]} 17. e5 {[%clk 0:02:31]}  c4 {[%clk 0:02:05]} 18. Be2 {[%clk 0:02:29]}  Nd5 {[%clk 0:02:01]} 19. Bd2 {[%clk 0:02:03]}  Qh4+ {[%clk 0:01:56]} 20. Kd1 {[%clk 0:01:52]}  Nxf4 {[%clk 0:01:54]} 21. Qf5 {[%clk 0:01:45]}  Rd8 {[%clk 0:01:47]} 22. Rf1 {[%clk 0:01:22]}  g5 {[%clk 0:01:28]} 23. Bf3 {[%clk 0:01:11]}  Bxf3+ {[%clk 0:01:05]} 24. Rxf3 {[%clk 0:00:48]}  O-O {[%clk 0:00:52]} 25. Kc2 {[%clk 0:00:49]}  Ne6 {[%clk 0:00:43]} 26. Raf1 {[%clk 0:00:49]}  h6 {[%clk 0:00:37]} 27. g3 {[%clk 0:00:42]}  Qh5 {[%clk 0:00:22]} 28. g4 {[%clk 0:00:35]}  Qg6 {[%clk 0:00:21]} 29. Qxg6+ {[%clk 0:00:32]}  fxg6 {[%clk 0:00:18]} 30. Rf6 {[%clk 0:00:29]}  Kg7 {[%clk 0:00:19]} 31. Bc1 {[%clk 0:00:30]}  Nc5 {[%clk 0:00:12]} 32. Ba3 {[%clk 0:00:21]}  Nd7 {[%clk 0:00:11]} 33. Bxf8+ {[%clk 0:00:19]}  Nxf8 {[%clk 0:00:02]} 34. e6 {[%clk 0:00:19]}  Kg8 {[%clk 0:00:03]} 35. e7 {[%clk 0:00:18]} 1-0


[Site "https://www.chess.com"]

[Event "Titled Tuesday Blitz January 10 Late 2023"]
[White "Abdrlauf, Elham"]
[Black "Suder, Jakub"]
[WhiteFideId "1533533"]
[BlackFideId "1195310"]
[WhiteElo "2518"]
[BlackElo "2244"]
[Result "1-0"]
[Round "04"]
[TimeControl "180+2"]
[Date "2023.01.10"]
[WhiteClock "0:01:04"]
[BlackClock "0:01:42"]

1. e4 {[%clk 0:00:00]}  c5 {[%clk 0:00:00]} 2. Nf3 {[%clk 0:03:00]}  e6 {[%clk 0:02:55]} 3. c3 {[%clk 0:02:58]}  Nf6 {[%clk 0:02:55]} 4. e5 {[%clk 0:02:58]}  Nd5 {[%clk 0:02:55]} 5. Bc4 {[%clk 0:02:58]}  d6 {[%clk 0:02:55]} 6. d4 {[%clk 0:02:59]}  cxd4 {[%clk 0:02:53]} 7. cxd4 {[%clk 0:02:58]}  Nb6 {[%clk 0:02:52]} 8. Bd3 {[%clk 0:02:58]}  Bd7 {[%clk 0:02:52]} 9. O-O {[%clk 0:02:53]}  Bc6 {[%clk 0:02:51]} 10. Nc3 {[%clk 0:02:52]}  N8d7 {[%clk 0:02:51]} 11. Bf4 {[%clk 0:02:51]}  dxe5 {[%clk 0:02:51]} 12. dxe5 {[%clk 0:02:38]}  Nd5 {[%clk 0:02:51]} 13. Nxd5 {[%clk 0:02:39]}  Bxd5 {[%clk 0:02:50]} 14. h4 {[%clk 0:02:34]}  Be7 {[%clk 0:02:50]} 15. Ng5 {[%clk 0:02:11]}  Bxg5 {[%clk 0:02:49]} 16. hxg5 {[%clk 0:02:03]}  a6 {[%clk 0:02:08]} 17. Rc1 {[%clk 0:01:57]}  Rc8 {[%clk 0:02:07]} 18. Qh5 {[%clk 0:01:51]}  Nc5 {[%clk 0:01:59]} 19. Bb1 {[%clk 0:01:42]}  Qe7 {[%clk 0:01:42]} 20. b4 {[%clk 0:01:04]} 1-0


[Site "https://www.chess.com"]

[Event "Titled Tuesday Blitz January 10 Late 2023"]
[White "Bayo Milagro, Alvaro"]
[Black "Boros, Denes"]
[WhiteFideId "22275240"]
[BlackFideId "722340"]
[WhiteElo "2287"]
[BlackElo "2406"]
[Result "0-1"]
[Round "04"]
[TimeControl "180+2"]
[Date "2023.01.10"]
[WhiteClock "0:00:05"]
[BlackClock "0:00:11"]

1. d4 {[%clk 0:00:00]}  Nc6 {[%clk 0:00:00]} 2. Nf3 {[%clk 0:03:00]}  Nf6 {[%clk 0:03:00]} 3. d5 {[%clk 0:02:58]}  Nb8 {[%clk 0:02:59]} 4. c4 {[%clk 0:02:58]}  g6 {[%clk 0:02:58]} 5. Nc3 {[%clk 0:02:57]}  Bg7 {[%clk 0:02:56]} 6. e4 {[%clk 0:02:57]}  O-O {[%clk 0:02:57]} 7. Be2 {[%clk 0:02:57]}  d6 {[%clk 0:02:58]} 8. O-O {[%clk 0:02:58]}  c6 {[%clk 0:02:58]} 9. h3 {[%clk 0:02:57]}  Na6 {[%clk 0:02:59]} 10. Qc2 {[%clk 0:02:55]}  e5 {[%clk 0:02:59]} 11. Be3 {[%clk 0:02:53]}  Bd7 {[%clk 0:02:57]} 12. Rfd1 {[%clk 0:02:44]}  c5 {[%clk 0:02:52]} 13. a3 {[%clk 0:02:35]}  Nh5 {[%clk 0:02:52]} 14. Ne1 {[%clk 0:02:35]}  Nf4 {[%clk 0:02:51]} 15. Bf1 {[%clk 0:02:29]}  f5 {[%clk 0:02:50]} 16. Nd3 {[%clk 0:02:29]}  Nxd3 {[%clk 0:02:50]} 17. Rxd3 {[%clk 0:02:12]}  f4 {[%clk 0:02:42]} 18. Bd2 {[%clk 0:02:07]}  h5 {[%clk 0:02:37]} 19. Nb5 {[%clk 0:02:06]}  Qe7 {[%clk 0:02:33]} 20. b4 {[%clk 0:01:57]}  g5 {[%clk 0:02:29]} 21. f3 {[%clk 0:01:54]}  g4 {[%clk 0:02:22]} 22. hxg4 {[%clk 0:01:33]}  hxg4 {[%clk 0:02:20]} 23. Kf2 {[%clk 0:01:32]}  Qh4+ {[%clk 0:02:21]} 24. Ke2 {[%clk 0:01:32]}  Qh2 {[%clk 0:01:47]} 25. Nxd6 {[%clk 0:01:32]}  gxf3+ {[%clk 0:01:48]} 26. Rxf3 {[%clk 0:01:04]}  Bg4 {[%clk 0:01:44]} 27. Qd3 {[%clk 0:01:05]}  Rf6 {[%clk 0:01:44]} 28. Nxb7 {[%clk 0:01:01]}  Rg6 {[%clk 0:01:37]} 29. Kd1 {[%clk 0:00:56]}  Bf8 {[%clk 0:01:12]} 30. d6 {[%clk 0:00:53]}  Qh7 {[%clk 0:01:07]} 31. Qd5+ {[%clk 0:00:35]}  Kh8 {[%clk 0:00:56]} 32. b5 {[%clk 0:00:30]}  Be6 {[%clk 0:00:42]} 33. Qxe5+ {[%clk 0:00:29]}  Bg7 {[%clk 0:00:31]} 34. Qxf4 {[%clk 0:00:24]}  Bxa1 {[%clk 0:00:31]} 35. bxa6 {[%clk 0:00:25]}  Rf6 {[%clk 0:00:29]} 36. Qe3 {[%clk 0:00:20]}  Bg4 {[%clk 0:00:27]} 37. Bc3 {[%clk 0:00:14]}  Bxf3+ {[%clk 0:00:25]} 38. gxf3 {[%clk 0:00:12]}  Bxc3 {[%clk 0:00:25]} 39. Qxc3 {[%clk 0:00:12]}  Qg7 {[%clk 0:00:26]} 40. e5 {[%clk 0:00:13]}  Rf5 {[%clk 0:00:26]} 41. f4 {[%clk 0:00:09]}  Qg4+ {[%clk 0:00:24]} 42. Be2 {[%clk 0:00:09]}  Qxf4 {[%clk 0:00:21]} 43. e6+ {[%clk 0:00:09]}  Kg8 {[%clk 0:00:20]} 44. e7 {[%clk 0:00:09]}  Rf6 {[%clk 0:00:20]} 45. Kc2 {[%clk 0:00:06]}  Rxd6 {[%clk 0:00:15]} 46. Nxd6 {[%clk 0:00:04]}  Qxd6 {[%clk 0:00:14]} 47. Bf3 {[%clk 0:00:05]}  Qg6+ {[%clk 0:00:15]} 48. Kc1 {[%clk 0:00:03]}  Qg5+ {[%clk 0:00:12]} 49. Kc2 {[%clk 0:00:03]}  Qf5+ {[%clk 0:00:11]} 50. Kc1 {[%clk 0:00:04]}  Re8 {[%clk 0:00:10]} 51. Bd5+ {[%clk 0:00:04]}  Kh7 {[%clk 0:00:10]} 52. Qe3 {[%clk 0:00:04]}  Qf6 {[%clk 0:00:10]} 53. Qe4+ {[%clk 0:00:04]}  Kg7 {[%clk 0:00:10]} 54. Qg4+ {[%clk 0:00:04]}  Qg6 {[%clk 0:00:10]} 55. Qd7 {[%clk 0:00:04]}  Qg5+ {[%clk 0:00:11]} 56. Kc2 {[%clk 0:00:04]}  Rxe7 {[%clk 0:00:11]} 57. Qd8 {[%clk 0:00:04]}  Re2+ {[%clk 0:00:11]} 58. Kb3 {[%clk 0:00:04]}  Re3+ {[%clk 0:00:11]} 59. Ka4 {[%clk 0:00:05]}  Qxd8 {[%clk 0:00:11]} 0-1


[Site "https://www.chess.com"]